[Event "1st FIDE Olympiad DIS 2023"]
[Site "Belgrade"]
[Date "2023.02.02"]
[Round "4.16"]
[White "Petrovic, Vladan"]
[Black "Andriienko, Artom"]
[Result "0-1"]
[ECO "B98"]
[WhiteElo "1818"]
[BlackElo "1693"]
[Annotator "NA RC COMBH"]
[PlyCount "76"]
[EventDate "2023.01.30"]
[EventType "team-tourn"]
[EventCountry "SRB"]
[SourceTitle "playchess.com"]
[Source "ChessBase"]
[SourceQuality "1"]
[WhiteTeam "Serbia"]
[BlackTeam "Ukraine"]
[WhiteTeamCountry "SRB"]
[BlackTeamCountry "UKR"]
[TimeControl "40/5400+30:1800+30"]

1. e4 {[%emt 0:00:04]} c5 {[%emt 0:00:16]} 2. Nf3 {[%emt 0:00:06]} d6 {[%emt 0:00:15]} 3. d4 {[%emt 0:00:37]} cxd4 {[%emt 0:00:21]} 4. Nxd4 {[%emt 0:00:20]} Nf6 {[%emt 0:00:11]} 5. Nc3 {[%emt 0:00:10]} a6 {[%emt 0:00:19]} 6. Bg5 {[%emt 0:00:19]} e6 {[%emt 0:00:10]} 7. f4 {[%emt 0:00:36]} Be7 {[%emt 0:00:33]} 8. Qf3 {[%emt 0:00:44]} h6 {[%emt 0:02:14]} 9. Bxf6 {[%emt 0:01:56]} Bxf6 {[%emt 0:00:06]} 10. O-O-O {[%emt 0:04:40]} Qb6 {[%emt 0:09:12]} 11. Nb3 {[%emt 0:04:58]} Qc7 {[%emt 0:01:44]} 12. Kb1 {[%emt 0:10:31]} Nc6 {[%emt 0:06:12]} ({Better is} 12... Bxc3 $1 $15 13. Qxc3 Qxc3 14. bxc3 Ke7) 13. g4 {[%emt 0:04:57]} Bd7 {[%emt 0:03:13]} 14. Bg2 {[%emt 0:03:55]} O-O-O {[%emt 0:14:40]} 15. Rd2 {[%emt 0:09:49]} g5 {[%emt 0:15:45]} 16. e5 $1 {[%emt 0:16:58]} Be7 {[%emt 0:03:55]} 17. exd6 {[%emt 0:03:15]} Bxd6 {[%emt 0:00:27]} 18. fxg5 {[%emt 0:00:48]} Bf4 {[%emt 0:11:14]} 19. Rf2 {[%emt 0:10:57]} hxg5 {[%emt 0:00:00]} 20. Nc5 {[%emt 0:07:43]} Na5 {[%emt 0:00:00]} 21. Nd3 {[%emt 0:00:45]} Bc6 {[%emt 0:00:00]} 22. Qe2 {[%emt 0:00:22]} Bxg2 {[%emt 0:00:00]} 23. Rxg2 {[%emt 0:00:06]} Nc4 {[%emt 0:00:00]} 24. Nxf4 {[%emt 0:02:00]} gxf4 {[%emt 0:00:00]} 25. Ne4 $2 {[%emt 0:03:49]} (25. Qe1) 25... Rh3 {[%emt 0:00:00]} 26. Ng5 {[%emt 0:03:10]} Re3 {[%emt 0:00:00]} 27. Qf2 {[%emt 0:01:20]} Qe5 {[%emt 0:00:30]} 28. c3 {[%emt 0:00:48]} Rd2 {[%emt 0:00:20]} 29. Qf1 {[%emt 0:00:13]} Qd5 {[%emt 0:01:39]} 30. Rhg1 {[%emt 0:02:14]} Rxg2 $19 {[%emt 0:02:28]} (30... Na3+ $142 31. Ka1 Rxg2 32. Nf3 Rxg1 33. Qxg1 Rxf3 34. bxa3 Rxc3 35. Kb2 Qd2+ 36. Kb1 Rc2 37. h4 Rb2+ 38. Ka1 Rxa2+ 39. Kb1 Qc2#) 31. Rxg2 {[%emt 0:01:00]} Nd2+ {[%emt 0:00:15]} 32. Rxd2 {[%emt 0:00:06]} Qxd2 {[%emt 0:00:08]} 33. Nf3 {[%emt 0:02:09]} Qd5 {[%emt 0:00:08]} 34. Nd4 {[%emt 0:00:22]} Qe4+ {[%emt 0:00:04]} 35. Nc2 {[%emt 0:00:25]} Re2 {[%emt 0:00:03]} 36. Qd1 {[%emt 0:00:33]} f3 {[%emt 0:00:06]} 37. Kc1 {[%emt 0:01:59]} Qxc2+ {[%emt 0:00:08]} 38. Qxc2 {[%emt 0:00:07]} Rxc2+ {[%emt 0:00:05]} 0-1

[Event "1st FIDE Olympiad DIS 2023"]
[Site "Belgrade"]
[Date "2023.02.02"]
[Round "4.17"]
[White "Zambo, Zoltan Istvan"]
[Black "Shashikant, Kutwal"]
[Result "1/2-1/2"]
[ECO "E62"]
[WhiteElo "2301"]
[BlackElo "2182"]
[Annotator "TA"]
[PlyCount "84"]
[EventDate "2023.01.30"]
[EventType "team-tourn"]
[EventCountry "SRB"]
[SourceTitle "playchess.com"]
[Source "ChessBase"]
[SourceQuality "1"]
[WhiteTeam "Hungary"]
[BlackTeam "India"]
[WhiteTeamCountry "HUN"]
[BlackTeamCountry "IND"]
[TimeControl "40/5400+30:1800+30"]

{[%evp 16,84,43,38,45,12,37,7,59,0,61,0,62,18,27,0,21,-49,-53,-43,-45,-87,-80,-89,-92,-117,-119,-163,-100,-171,-171,-196,-51,-57,-64,-399,-373,-398,0,0,0,0,42,56,33,33,35,0,0,0,0,0,0,0,23,-8,-8,-12,0,0,0,0,4906,-984,0,0,0,-48,0,-4,-6]} 1. d4 {[%emt 0:00:26]} Nf6 {[%emt 0:00:14]} 2. c4 {[%emt 0:03:00]} g6 {[%emt 0:00:46]} 3. Nf3 {[%emt 0:01:05]} Bg7 {[%emt 0:00:41]} 4. g3 {[%emt 0:01:07]} O-O {[%emt 0:00:39]} 5. Bg2 {[%emt 0:00:47]} d6 {[%emt 0:00:16]} 6. O-O {[%emt 0:00:53]} Nc6 {[%emt 0:07:26]} 7. Nc3 {[%emt 0:01:10]} e5 {[%emt 0:02:10]} 8. d5 {[%emt 0:10:17]} Nb8 $1 {[%emt 0:01:07][%mdl 4] outshines the older 8...Ne7.} 9. e4 {[%emt 0:03:09]} a5 {[%emt 0:05:22] E62: King's Indian: Fianchetto: 6...c6 and Panno Variation (6...Nc6) without ...a6.} 10. Ne1 {[%emt 0:03:24]} Na6 {[%emt 0:04:16]} 11. Nd3 {[%emt 0:00:38]} b6 {[%emt 0:03:45]} (11... Nd7 $11) 12. b3 {[%emt 0:08:34]} (12. a3 $14) 12... Nc5 {[%emt 0:03:28]} (12... Nd7 $11) 13. Rb1 {[%emt 0:05:57]} ({White should play} 13. Nxc5 $14 dxc5 14. Nb5) 13... Ne8 {[%emt 0:07:48] [#]} ({Better is} 13... Nfd7 $11) 14. a3 $146 {[%emt 0:04:21]} ({Predecessor:} 14. Bb2 f5 15. f4 exf4 16. Nxf4 Nf6 17. Ne6 Nxe6 18. dxe6 Bxe6 19. exf5 Bxf5 20. Bxa8 Qxa8 21. Rxf5 gxf5 {0-1 Avramidou,A (2228)-Pavlidis,A (2536) Kavala op 25th 2016 (2)}) 14... f5 {[%emt 0:05:01]} 15. f3 {[%emt 0:01:58]} f4 {[%emt 0:12:59]} 16. g4 {[%emt 0:06:35]} (16. Nb2 $11) 16... h5 $15 {[%emt 0:03:16]} 17. h3 {[%emt 0:00:44]} hxg4 {[%emt 0:11:53]} 18. fxg4 {[%emt 0:04:11]} Nxd3 {[%emt 0:04:09]} 19. Qxd3 {[%emt 0:00:10]} Bf6 {[%emt 0:00:24]} 20. Bf3 {[%emt 0:11:23]} Bh4 {[%emt 0:02:00]} 21. Ne2 {[%emt 0:01:57]} Rf7 {[%emt 0:01:15]} (21... Qg5 $19 22. Bg2 Qh6) 22. Bd2 {[%emt 0:00:38]} (22. Nxf4 $17 {was called for.} exf4 23. e5) 22... Nf6 $19 {[%emt 0:01:02]} 23. Bg2 {[%emt 0:08:09]} Nh7 {[%emt 0:01:11]} (23... Qf8 $19 {aiming for ...Bd7.} 24. Nxf4 exf4 25. Bxf4 Nxg4 {[%mdl 64] Discovered Attack} 26. hxg4 Rxf4) 24. Nxf4 $1 $15 {[%emt 0:11:03]} exf4 {[%emt 0:00:37]} 25. e5 $2 {[%emt 0:00:43][%mdl 8192] [#]} (25. Bxf4 $15 Qe8 26. e5 Rxf4 {[%mdl 64] Remove Defender} 27. Rxf4 dxe5 28. Re4) 25... dxe5 $19 {[%emt 0:03:04]} 26. d6 {[%emt 0:01:40]} Qxd6 $2 {[%emt 0:06:09]} ({Black should try} 26... Ra7 $19 27. Qxg6+ Rg7 28. Bd5+ Kf8 29. dxc7 Rxg6 30. cxd8=N Bxd8) 27. Qxd6 $11 {[%emt 0:00:46]} cxd6 {[%emt 0:00:01]} 28. Bxa8 {[%emt 0:00:07]} Bb7 {[%emt 0:00:09]} 29. Bxb7 {[%emt 0:00:27]} Rxb7 {[%emt 0:00:01]} 30. b4 {[%emt 0:00:13]} a4 {[%emt 0:04:26]} 31. Bc3 {[%emt 0:06:15][%cal Oc4c5]} (31. Be1 $5 {[%cal Re1h4]} Be7 32. Kg2 $14) 31... Rc7 {[%emt 0:00:33]} 32. c5 {[%emt 0:00:17]} bxc5 {[%emt 0:00:31]} 33. bxc5 {[%emt 0:00:09]} Rxc5 {[%emt 0:00:16]} 34. Bb4 {[%emt 0:00:58]} Rc6 {[%emt 0:00:44]} (34... Rc2 $5 {[%cal Rh7g5]} 35. Rfc1 (35. Bxd6 Ng5 $11) 35... Re2 $14) 35. Rfd1 {[%emt 0:01:30][%mdl 1024] White has compensation.} (35. Rbc1 $5 {[%cal Rc1c6]} Rb6 36. Rfd1 $11) 35... Be7 {[%emt 0:01:05]} 36. Rbc1 {[%emt 0:00:21]} Rb6 {[%emt 0:06:06]} (36... Rxc1 {simplifies} 37. Rxc1 Kf7 38. Kg2 Ke6) 37. Rc7 {[%emt 0:00:06]} Kf8 {[%emt 0:03:07]} 38. Rdc1 Rc6 $2 {[%mdl 8192] [#]} 39. Rd1 $4 {[%emt 0:00:43][%mdl 8192]} Rb6 $2 {[%emt 0:00:01]} (39... Rxc7 $19 40. h4 Kf7) 40. Ra7 Ng5 {[%emt 0:00:04]} 41. Rc7 {[%emt 0:00:03]} (41. Rc1 $11 Ne6 42. Rxa4) 41... Nh7 {[%emt 0:00:01]} (41... Ne6 $15 {should be considered.} 42. Ra7 Nd4) 42. h4 {[%emt 0:00:03] Black must now prevent g5.} Nf6 {[%emt 0:32:17] Never resign too early! An interesting game.   Weighted Error Value: White=0.51/Black=0.56} 1/2-1/2

[Event "1st FIDE Olympiad DIS 2023"]
[Site "Belgrade"]
[Date "2023.02.02"]
[Round "4.17"]
[White "Pavicevic, Jovan R"]
[Black "Zaynidinov, Sirojiddin"]
[Result "1/2-1/2"]
[ECO "B50"]
[WhiteElo "2214"]
[BlackElo "2042"]
[Annotator "TA"]
[PlyCount "50"]
[EventDate "2023.01.30"]
[EventType "team-tourn"]
[EventCountry "SRB"]
[SourceTitle "playchess.com"]
[Source "ChessBase"]
[SourceQuality "1"]
[WhiteTeam "Serbia"]
[BlackTeam "Uzbekistan"]
[WhiteTeamCountry "SRB"]
[BlackTeamCountry "UZB"]
[TimeControl "40/5400+30:1800+30"]

{[%evp 11,50,9,11,5,9,6,4,8,68,74,60,61,137,37,52,54,58,42,60,52,65,41,116,72,146,0,0,14,25,29,25,0,7,7,8,5,8,5,5,4,8]} 1. e4 {[%emt 0:00:25]} c5 {[%emt 0:01:32]} 2. Nf3 {[%emt 0:00:18]} d6 {[%emt 0:00:09]} 3. c3 {[%emt 0:00:18]} Nf6 {[%emt 0:02:34]} 4. h3 {[%emt 0:00:32]} Nc6 {[%emt 0:02:33]} 5. Bd3 {[%emt 0:00:33]} e5 {[%emt 0:05:12]} 6. Bc2 {[%emt 0:00:39]} Be7 {[%emt 0:07:44]} 7. O-O {[%emt 0:00:38] B50: Sicilian: 2...d6, Miscellaneous.} O-O {[%emt 0:03:02]} 8. d4 $1 {[%emt 0:04:19] The main line 8.d4 scores better than 8.Re1.} exd4 {[%emt 0:09:17]} 9. cxd4 {[%emt 0:00:26]} Nb4 {[%emt 0:00:27]} (9... cxd4 $11 10. Nxd4 d5) 10. Nc3 $14 {[%emt 0:00:27]} Nxc2 {[%emt 0:00:16]} 11. Qxc2 {[%emt 0:00:17] [#]} a6 $146 {[%emt 0:03:42]} (11... cxd4 $14 12. Nxd4 Qa5) ({Predecessor:} 11... Bd7 12. dxc5 dxc5 13. Rd1 Qc8 14. Bg5 h6 15. Bh4 Re8 16. e5 Nh7 17. Bxe7 Rxe7 {½-½ Mihajlovskij,S (2476)-Okrugin,S (2354) Voronezh op-A 2008 (6)}) 12. a4 {[%emt 0:04:00]} (12. dxc5 $16 dxc5 13. Rd1) 12... Be6 {[%emt 0:13:21]} 13. Rd1 {[%emt 0:04:12] [#] Hoping for dxc5.} Qc8 {[%emt 0:05:41]} 14. Be3 {[%emt 0:10:06]} b6 {[%emt 0:02:44]} 15. Ng5 {[%emt 0:03:47]} Ne8 {[%emt 0:11:47]} 16. dxc5 {[%emt 0:14:11]} (16. Nxe6 {simplifies} fxe6 17. Rab1 Rb8 18. d5) 16... dxc5 {[%emt 0:01:06]} (16... bxc5 $14 17. e5 Bf5) 17. Nd5 {[%emt 0:11:34] White is much more active. The black rooks are badly placed.} Bxd5 {[%emt 0:02:10]} ({Black should try} 17... Bxg5 18. Bxg5 Qb7) 18. Rxd5 {[%emt 0:00:40]} (18. exd5 $16 {[%csl Gg5][%cal Rc2h7]} g6 19. a5) 18... Nc7 {[%emt 0:00:48] White must now prevent ...h6.} (18... h6 $5 19. Nf3 $8 Nf6 $11) 19. Rd2 {[%emt 0:02:34]} Ne6 {[%emt 0:01:33]} 20. Nxe6 {[%emt 0:01:38]} Qxe6 {[%emt 0:00:17]} 21. Rad1 {[%emt 0:01:08]} Rfd8 {[%emt 0:08:58] The position is equal.} 22. Rxd8+ {[%emt 0:02:24]} Rxd8 {[%emt 0:00:38]} 23. Rxd8+ {[%emt 0:00:23]} Bxd8 {[%emt 0:00:13]} 24. Qd3 {[%emt 0:08:40]} Qc8 {[%emt 0:00:17]} 25. b3 {[%emt 0:00:34]} Be7 {[%emt 0:02:08] Weighted Error Value: White=0.27 (precise) /Black=0.26 (precise)} 1/2-1/2

[Event "1st FIDE Olympiad DIS 2023"]
[Site "Belgrade"]
[Date "2023.02.02"]
[Round "4.18"]
[White "Kishan, Gangolli"]
[Black "Mate, Balazs"]
[Result "1-0"]
[ECO "D45"]
[WhiteElo "2059"]
[BlackElo "2015"]
[Annotator "TA"]
[PlyCount "115"]
[EventDate "2023.01.30"]
[EventType "team-tourn"]
[EventCountry "SRB"]
[SourceTitle "playchess.com"]
[Source "ChessBase"]
[SourceQuality "1"]
[WhiteTeam "India"]
[BlackTeam "Hungary"]
[WhiteTeamCountry "IND"]
[BlackTeamCountry "HUN"]
[TimeControl "40/5400+30:1800+30"]

{[%evp 16,115,14,10,6,0,0,0,1,0,22,10,0,0,0,0,0,3,9,0,25,30,42,27,41,50,86,93,152,57,49,3,6,0,129,124,281,287,287,287,279,283,264,264,269,203,197,187,210,204,201,200,196,177,172,166,163,160,204,183,227,156,165,155,173,175,205,205,219,207,310,290,425,407,394,406,570,370,1428,1197,1187,700,659,522,699,661,631,0,714,573,1463,1402,1731,1814,29982,29974,29987,29988,29988,29989,29991,29992]} 1. d4 {[%emt 0:00:17]} d5 {[%emt 0:00:13]} 2. c4 {[%emt 0:00:41]} c6 {[%emt 0:00:28]} 3. Nc3 {[%emt 0:00:48]} Nf6 {[%emt 0:01:13]} 4. e3 {[%emt 0:00:44]} e6 {[%emt 0:02:09]} 5. Nf3 {[%emt 0:00:21]} Nbd7 {[%emt 0:01:40]} 6. Be2 {[%emt 0:00:52]} Bd6 {[%emt 0:01:03]} 7. O-O {[%emt 0:00:45]} O-O {[%emt 0:01:34]} 8. b3 {[%emt 0:00:42]} Qe7 {[%emt 0:02:23]} 9. Bb2 {[%emt 0:01:07]} b6 {[%emt 0:07:06] D45: Semi-Slav: 5 e3.} 10. Bd3 {[%emt 0:08:00]} Bb7 {[%emt 0:08:02]} 11. Re1 {[%emt 0:08:00]} Rfd8 {[%emt 0:05:12] [#] The position is equal.} 12. e4 $146 {[%emt 0:07:49] e5 would be deadly.} ({Predecessor:} 12. Qc2 h6 13. e4 dxe4 14. Nxe4 Ba3 15. Bc3 a5 16. Re3 Bb4 17. Bb2 Ba3 18. Bxa3 Qxa3 {½-½ Praggnanandhaa,R (2648)-Lodici,L (2553) Olympiad-44 Chennai 2022 (4.3)}) 12... dxe4 {[%emt 0:01:20]} 13. Nxe4 {[%emt 0:00:43]} Nxe4 {[%emt 0:02:28]} 14. Bxe4 {[%emt 0:00:24]} Nf6 {[%emt 0:00:53]} 15. Bc2 {[%emt 0:01:04]} Ba3 {[%emt 0:01:49]} 16. Bc3 {[%emt 0:05:46]} Bb4 {[%emt 0:04:35]} 17. Qd3 {[%emt 0:03:56]} Qd6 {[%emt 0:09:31]} 18. Bxb4 {[%emt 0:13:29]} Qxb4 {[%emt 0:00:17]} 19. Ne5 {[%emt 0:04:44]} Qd6 {[%emt 0:05:33]} 20. Rad1 {[%emt 0:00:00]} Qc7 {[%emt 0:04:30]} 21. Qh3 $1 {[%emt 0:07:22]} h6 {[%emt 0:05:14] [#]} (21... g6 $142) 22. f4 {[%emt 0:10:00] White is much more active.} (22. Rd3 $1 $16 {[%cal Rd3g3] Strongly threatening Rg3.} Kf8 23. f4) 22... c5 $14 {[%emt 0:01:15]} 23. f5 {[%emt 0:02:13]} (23. g4 $1 $14 Nd7 24. g5 Nxe5 {[%mdl 64] Remove Defender} 25. dxe5) 23... Re8 $11 {[%emt 0:03:59]} 24. Nxf7 {[%emt 0:04:24]} Qxf7 {[%emt 0:04:25]} ({Resist} 24... Kxf7 25. fxe6+ Kg8 26. d5 $16) (24... exf5 $1 $11 {keeps the balance.} 25. Ne5 Be4 26. Bxe4 {[%mdl 64] Remove Defender} Nxe4) 25. fxe6 $16 {[%emt 0:00:00][%cal Bf5e6,Be6e7][%mdl 32] White now steadily converts the win.} Qh5 {[%emt 0:06:26]} (25... Qe7 $16) 26. Qxh5 $18 {[%emt 0:00:32]} Nxh5 {[%emt 0:00:03]} 27. Bg6 {[%emt 0:00:34][%csl LRe8,LRh5]} Nf6 {[%emt 0:00:50]} 28. Bxe8 {[%emt 0:02:26]} Nxe8 {[%emt 0:01:21]} 29. dxc5 {[%emt 0:02:57]} bxc5 {[%emt 0:00:40]} 30. e7 {[%emt 0:00:39]} Kf7 {[%emt 0:04:57]} 31. Rd8 {[%emt 0:01:06]} Rc8 {[%emt 0:04:05]} 32. Rxc8 {[%emt 0:03:44]} Bxc8 {[%emt 0:00:03] [#]} 33. Re5 {[%emt 0:00:13] Prevents Bf5} Bb7 {[%emt 0:03:53]} 34. Rxc5 {[%emt 0:02:23]} Kxe7 {[%emt 0:00:05]} 35. Re5+ {[%emt 0:00:15]} Kd7 {[%emt 0:01:18]} 36. Kf2 {[%emt 0:03:20]} a6 {[%emt 0:00:50]} 37. Re2 {[%emt 0:01:02]} Nf6 {[%emt 0:00:30]} 38. h3 {[%emt 0:01:36]} Nh5 {[%emt 0:03:18]} 39. g3 {[%emt 0:02:10]} Nf6 {[%emt 0:00:12]} 40. Ke3 {[%emt 0:00:42]} Kd6 {[%emt 0:04:15]} 41. Kd4 {[%emt 0:01:26]} Bc6 {[%emt 0:03:00]} 42. b4 {[%emt 0:01:46][%cal Oa2a4]} Nh5 {[%emt 0:01:52]} (42... Ne8 $142 43. a4 Nc7) 43. Re3 {[%emt 0:01:44]} Nf6 {[%emt 0:00:48] [#]} (43... Bd7 $142 44. h4 g5) 44. a4 $1 {[%emt 0:02:20][%mdl 512]} Bg2 {[%emt 0:01:32]} 45. g4 {[%emt 0:04:50]} Bb7 {[%emt 0:00:33]} (45... Ng8 {might work better.} 46. Rg3 Bb7 47. c5+ Ke6) 46. b5 {[%emt 0:01:00]} Bc8 $2 {[%emt 0:03:03]} (46... Nd7 47. a5 Nc5) 47. c5+ {[%emt 0:00:50]} Kd7 {[%emt 0:00:13]} 48. Ke5 {[%emt 0:02:07]} Kc7 {[%emt 0:10:07]} 49. Rf3 {[%emt 0:08:27]} Nd7+ {[%emt 0:02:58]} 50. Kd4 {[%emt 0:02:40]} Nf6 {[%emt 0:00:25]} 51. Re3 {[%emt 0:01:00] aiming for Re7+.} Kd7 {[%emt 0:00:37] Against Re7+} 52. Rc3 {[%emt 0:00:38]} a5 {[%emt 0:01:05]} 53. Re3 {[%emt 0:02:12]} g5 {[%emt 0:09:08]} 54. Rf3 {[%emt 0:00:33]} Ke7 {[%emt 0:00:55]} 55. c6 {[%emt 0:00:00] White mates.} Be6 {[%emt 0:01:03] [#]} 56. Rxf6 $1 {[%emt 0:01:48][%mdl 576] Promotion} Kxf6 {[%emt 0:00:12]} 57. b6 {[%emt 0:00:00][%cal Bb5b6,Bb6b7][%mdl 32]} Ke7 {[%emt 0:00:58]} 58. b7 {[%emt 0:00:00] Weighted Error Value: White=0.38/Black=0.43} 1-0

[Event "1st FIDE Olympiad DIS 2023"]
[Site "Belgrade"]
[Date "2023.02.02"]
[Round "4.18"]
[White "Mamarajabov, Sardorbek"]
[Black "Tonic, Milos"]
[Result "1-0"]
[ECO "B11"]
[WhiteElo "1712"]
[BlackElo "2018"]
[Annotator "TA"]
[PlyCount "79"]
[EventDate "2023.01.30"]
[EventType "team-tourn"]
[EventCountry "SRB"]
[SourceTitle "playchess.com"]
[Source "ChessBase"]
[SourceQuality "1"]
[WhiteTeam "Uzbekistan"]
[BlackTeam "Serbia"]
[WhiteTeamCountry "UZB"]
[BlackTeamCountry "SRB"]
[TimeControl "40/5400+30:1800+30"]

{[%evp 10,79,30,27,42,12,25,0,28,11,16,26,25,24,50,56,55,55,61,45,73,48,134,137,234,137,125,95,85,93,84,-83,-18,-21,-19,-30,-23,-23,-14,-27,-16,-54,-32,-649,-691,-698,-87,-94,0,-194,-181,-203,0,-25,0,-195,-148,-133,-122,-123,-66,-74,182,170,127,120,897,895,895,893,885,823]} 1. e4 {[%emt 0:00:12]} c6 {[%emt 0:00:58]} 2. Nc3 {[%emt 0:00:38]} d5 {[%emt 0:00:50]} 3. Nf3 {[%emt 0:00:23]} Bg4 {[%emt 0:04:59]} 4. h3 {[%emt 0:00:58]} Bxf3 {[%emt 0:00:23]} 5. Qxf3 {[%emt 0:00:07]} Nf6 {[%emt 0:00:13]} 6. d3 {[%emt 0:00:50]} d4 {[%emt 0:03:03] B11: Caro-Kann: Two Knights Variation.} 7. Ne2 {[%emt 0:02:09]} e5 {[%emt 0:08:47]} 8. Bd2 {[%emt 0:01:48]} Nbd7 {[%emt 0:02:17][%cal Bb8d7,Bd7c5,Bc5e6][%mdl 32] The position is equal.} 9. g4 {[%emt 0:00:27][%cal Bg2g4,Bg4g5][%mdl 32]} Nc5 {[%emt 0:10:08] [#]} 10. g5 $146 {[%emt 0:07:37]} ({Predecessor:} 10. Ng3 g6 11. Bg2 Ne6 12. Ne2 h6 13. Qg3 Bd6 14. h4 Qc7 15. O-O g5 16. h5 {1-0 Ozturkler,B (1966)-Kulakli,A (1649) TUR-chT Clubs 2019 (4.14)}) 10... Nfd7 {[%emt 0:00:18]} 11. h4 {[%emt 0:00:11]} Bd6 {[%emt 0:01:13]} 12. Bh3 {[%emt 0:01:21]} Qe7 {[%emt 0:01:31]} 13. O-O-O {[%emt 0:04:53]} Ne6 {[%emt 0:04:32]} 14. Kb1 {[%emt 0:05:44]} c5 {[%emt 0:04:33]} 15. Qg2 {[%emt 0:05:06] White is more active.} b5 {[%emt 0:04:11] [#]} (15... O-O-O $14) 16. f4 $1 $16 {[%emt 0:01:36][%mdl 512]} c4 {[%emt 0:02:34]} (16... Nc7 $16 {was worth a try.} 17. Rhf1 exf4) (16... O-O-O 17. f5) 17. Bxe6 {[%emt 0:03:21]} (17. f5 $18 Nc7 18. f6 gxf6 19. Ng3) 17... fxe6 {[%emt 0:05:30]} 18. dxc4 {[%emt 0:02:15]} bxc4 {[%emt 0:00:19]} 19. fxe5 {[%emt 0:06:31]} (19. Nxd4 {is more complex.} exd4 20. e5 O-O 21. exd6 Qxd6 22. Be3) 19... Bxe5 {[%emt 0:01:15][%cal Oc4c3]} 20. c3 $2 {[%emt 0:04:26]} (20. Bc1 $1 $16) 20... dxc3 {[%emt 0:08:59]} (20... d3 $17 21. Nd4 O-O) 21. Bxc3 $11 {[%emt 0:00:57]} Bxc3 {[%emt 0:00:41]} 22. Nxc3 {[%emt 0:00:06]} (22. bxc3 $2 Qa3 23. Ka1 Nc5 $19) 22... O-O {[%emt 0:00:08]} 23. Qg3 {[%emt 0:05:09] Inhibits Ne5.} Nc5 {[%emt 0:02:07]} 24. Rd4 {[%emt 0:01:04]} (24. Qd6 {simplifies} Qxd6 25. Rxd6 Rab8 26. Ka1) 24... Rab8 {[%emt 0:10:49] Strongly threatening ...Qb7.} 25. Rxc4 {[%emt 0:11:50]} Qb7 $1 {[%emt 0:00:24][%csl Gb8][%cal Rb7b2]} 26. Qg2 {[%emt 0:00:40][%mdl 8192]} (26. Rxc5 $2 Qxb2#) (26. b4 $2 Qa6 27. Rd4 (27. Rxc5 $2 Rxb4+ 28. Kc2 Qa3 $19) 27... Qa3 $19) (26. Qh2 $15 Nd3 27. b3) 26... Nd3 $19 {[%emt 0:00:20]} 27. b3 {[%emt 0:00:24]} Qa6 $2 {[%emt 0:02:28]} (27... Rf2 $19 {is more deadly.} 28. Qxf2 Nxf2) 28. Ra4 $17 {[%emt 0:07:59]} Qc6 {[%emt 0:00:27]} (28... Qb6 $1 $17 {White must now prevent ...Rf2.} 29. Qc2 Nb4) 29. Qc2 {[%emt 0:00:42]} (29. Qd2 $11 {and White stays safe.} Rfd8 30. h5 (30. Rxa7 Qc5 $17)) 29... Nb4 $19 {[%emt 0:00:23][%mdl 1024] Black has strong compensation.} 30. Qb2 {[%emt 0:01:08] [#]} Nd3 $2 {[%emt 0:00:28]} (30... a5 $1 $19 {...Rbc8 is the strong threat.} 31. Rxa5 Rbc8) 31. Qc2 {[%emt 0:02:31]} Nb4 {[%emt 0:00:12]} (31... Rf3 $11 32. Rd4 (32. Rxa7 $2 Rc8 $19) 32... Ne5) 32. Qb2 $1 {[%emt 0:06:44]} Rf3 {[%emt 0:12:46]} ({Black should play} 32... a5 $19 33. Rd1 (33. Rxa5 $2 {perishes.} Rf3 $19) 33... Rf3) 33. Rc1 $17 {[%emt 0:06:48][%cal Oa4b4]} Nd3 {[%emt 0:01:47][%csl LRb2,LRc1]} 34. Qe2 {[%emt 0:00:07]} Rh3 {[%emt 0:01:40]} (34... Nxc1 $17 35. Qxf3 Nxb3 {[%mdl 64] Demolition} 36. axb3 Rxb3+ 37. Kc2 Qxa4) 35. Qf1 $15 {[%emt 0:02:30]} Re3 $2 {[%emt 0:04:18][%mdl 8192]} (35... Nxc1 $17 {keeps the pressure on.} 36. Qxh3 Nxb3 {[%mdl 64] Demolition} 37. axb3 Rxb3+ 38. Kc2 Rxc3+ {[%mdl 64] Remove Defender} 39. Qxc3 Qxa4+ 40. Kd3 Qa6+ 41. Ke3 Qb6+ 42. Kf3 Kf7) 36. Rxa7 $1 $40 {[%emt 0:04:43][%mdl 128] Threatening mate with Qf7+. White wants a kill.} Rf8 {[%emt 0:00:10] [#] Dodges Qf7+} 37. Nd5 $1 {[%emt 0:01:26][%mdl 64] White threatens Ne7+ and mate. Discovered Attack} ({But not} 37. Qg1 $2 Re1 38. Rxe1 Qxc3 $19) 37... exd5 {[%emt 0:01:46][%mdl 8192]} (37... Rxf1 $16 38. Ne7+ Kh8 39. Rxf1 Qe8) 38. Qxf8+ {[%emt 0:00:38] White is clearly winning.} (38. Rxc6 $2 {is the wrong capture.} Rxf1+ 39. Kc2 Nb4+ 40. Kd2 Rd3+ 41. Ke2 Nxc6 $19) 38... Kxf8 {[%emt 0:00:14]} 39. Rxc6 {[%emt 0:00:04][%cal Rc6c8]} Re1+ {[%emt 0:01:44]} 40. Kc2 {[%emt 0:00:08] Never resign too early! Excellently played by Mamarajabov!   Weighted Error Value: White=0.40/Black=0.62} 1-0